[Event "25th Nepal Championship 2025"]
[Site "Hetauda"]
[Date "2025.01.27"]
[Round "3.1"]
[White "Subedi, Rajan"]
[Black "Silwal, Purushottam"]
[Result "1/2-1/2"]
[Annotator "TA"]
[ECO "E60"]
[WhiteElo "1982"]
[BlackElo "2045"]
[PlyCount "222"]
[EventDate "2025.01.24"]
[EventType "tourn"]
[EventCountry "NEP"]
[SourceTitle "playchess.com"]
[Source "ChessBase"]
[SourceQuality "1"]
[TimeControl "5400+30"]

{[%evp 9,222,20,26,30,47,8,16,17,19,12,17,15,29,0,10,-26,-37,-26,0,-34,-27,-50,-42,-52,-27,-45,-27,-40,-29,-35,-16,-14,44,-14,15,-22,-25,-124,-124,-126,-87,-127,-123,-122,0,-88,0,-111,0,-115,-45,-124,-100,-88,-77,-127,-111,-131,-86,-104,-69,-62,-44,-56,0,-78,0,-47,-15,-227,-31,-81,-86,-104,0,0,183,8,8,-215,-214,-254,-303,-354,-296,-787,-773,-328,-707,-659,-8,-8,-8,-8,-8,-201,-60,-61,-8,-8,-8,-8,-8,-8,-8,-8,-8,-8,-8,-8,-8,-8,-8,-106,-8,-8,-8,-8,-8,-8,-8,-8,-8,-8,0,-8,0,-8,-8,-8,-8,-8,-8,-119,0,-8,-8,-123,-8,-123,-8,-1406,-1122,-10262,-4640,-1993,-1944,-29969,-29968,-4610,-8,-8,-8,-8,-8,-8,-8,-8,-8,-8,-8,-8,0,-8,-8,-8,-8,-8,-8,-8,0,-8,-8,-8,-8,-8,-8,-8,-8,-8,-8,-8,0,0,0,-8,0,-8,-8,-8,-8,-8,-8,-8,-8,-8,-8,-8,-8,-8,-8,-8,-8,-8,-8,-8,0,-8,-8,-8,-8,-8,-8,-8,-8]} 1. d4 {[%emt 0:00:03]} Nf6 {[%emt 0:00:06]} 2. c4 {[%emt 0:00:07]} g6 {[%emt 0:00:10]} 3. h4 {[%emt 0:00:10]} c5 {[%emt 0:00:06]} 4. d5 {[%emt 0:00:07]} b5 {[%emt 0:00:18]} 5. cxb5 {[%emt 0:01:28]} a6 {[%emt 0:01:48]} 6. bxa6 {[%emt 0:02:37][%cal Oa6a7] E60: King's Indian: Unusual lines and Fianchetto Variation without Nc3.} Bxa6 {[%emt 0:00:13]} 7. e3 {[%emt 0:01:11]} Bxf1 {[%emt 0:02:00]} 8. Kxf1 {[%emt 0:00:05]} d6 {[%emt 0:01:35]} 9. Nc3 {[%emt 0:01:30]} Bg7 {[%emt 0:00:18]} 10. Nge2 {[%emt 0:01:18]} Nbd7 {[%emt 0:01:49]} 11. Nf4 {[%emt 0:07:01]} h5 $146 {[%emt 0:02:53]} (11... h6 12. a4 O-O 13. Rh3 Qa5 14. Bd2 Rfb8 15. Qc2 Qa6+ 16. Kg1 Qc4 17. Ra3 Rb7 {0-1 Falke,O (1655)-Muedder,M (1949) GER-chT Lands U20 2021 (2.4)}) 12. Rh3 {[%emt 0:02:25]} Qb6 {[%emt 0:01:54]} 13. Rb1 {[%emt 0:01:44]} Ne5 {[%emt 0:02:03]} (13... Ng4 {feels hotter.} 14. Bd2 O-O 15. Rg3 Rfb8) 14. Kg1 {[%emt 0:00:39]} (14. b3 $5) 14... O-O {[%emt 0:05:28] Black sacrificed a pawn} 15. Nd3 {[%emt 0:06:57]} Nxd3 {[%emt 0:12:38]} 16. Qxd3 {[%emt 0:00:02]} Qa6 {[%emt 0:00:09]} 17. Qc2 {[%emt 0:04:19]} Rfb8 {[%emt 0:01:51][%mdl 1024] Black has compensation.} 18. e4 {[%emt 0:04:18]} Ng4 {[%emt 0:03:41]} 19. a3 {[%emt 0:06:25]} Bd4 {[%emt 0:01:53]} 20. Nd1 {[%emt 0:02:08]} c4 {[%emt 0:17:39]} (20... Rb7 $11) 21. Be3 {[%emt 0:03:51]} (21. Bd2 $1 $14) 21... Bg7 {[%emt 0:01:50]} 22. Rc1 {[%emt 0:00:45]} Nxe3 {[%emt 0:08:46]} 23. Nxe3 {[%emt 0:00:28]} (23. Rxe3 $11 Bh6 24. g3) 23... Bxb2 $17 {[%emt 0:18:29][%csl Oc4] Black has a strong passed pawn} (23... Rxb2 24. Qxc4 Qxc4 (24... Qxa3 25. Nd1 $16) 25. Nxc4 $16) 24. Rf1 {[%emt 0:04:50] Counterplay Black} c3 {[%emt 0:04:33][%cal Oa6a4]} 25. Rg3 {[%emt 0:03:01]} Qa4 {[%emt 0:00:48]} (25... Qxa3 26. e5 dxe5 27. Rxg6+ fxg6 28. Qxg6+ Kf8 29. Nf5 $11) 26. Qd3 {[%emt 0:02:44][%cal Oe4e5]} Qa6 {[%emt 0:00:27]} 27. Qc2 {[%emt 0:00:18]} Qa4 {[%emt 0:01:29]} (27... Qxa3 28. e5 Kh7 (28... dxe5 29. Rxg6+ fxg6 30. Qxg6+ Kf8 31. Nf5 $16) 29. e6 $11) 28. Qd3 $1 {[%emt 0:00:07][%cal Oe4e5]} Qa6 {[%emt 0:00:21]} 29. Qc2 {[%emt 0:00:06]} Qxa3 {[%emt 0:07:45]} (29... Kh7 $17 {[%cal Oa6a4]} 30. Nd1 Qa4 (30... Qxa3 31. Nxb2 Rxb2 32. Qxc3 $17) 31. Qxa4 Rxa4 32. Nxc3 Bxc3 (32... Rxa3 33. Ne2 $15) 33. Rxc3 Rxe4) 30. Qe2 {[%emt 0:04:39]} (30. e5 $1 $15 Kh7 (30... dxe5 31. Rxg6+ fxg6 32. Qxg6+ Kf8 33. Nf5 $16) 31. e6) 30... Kh7 {[%emt 0:01:21]} 31. Nc2 {[%emt 0:03:13]} Qa6 {[%emt 0:00:16]} 32. Qe3 {[%emt 0:00:12]} (32. Qf3 $142 f6 33. Qd1) 32... Rg8 {[%emt 0:00:28]} 33. Re1 {[%emt 0:01:12]} Rg7 {[%emt 0:00:26]} 34. Kh2 {[%emt 0:00:29]} Qc4 {[%emt 0:00:24]} 35. f4 $1 {[%emt 0:03:32]} Ra4 {[%emt 0:00:47]} 36. Qf3 {[%emt 0:00:45]} e6 {[%emt 0:00:46]} (36... Qb3 $15 37. Qe2 Qc4) 37. Rg5 {[%emt 0:02:14]} (37. dxe6 $1 $11 Qxe6 (37... fxe6 38. Rg5 $15) 38. Rg5) 37... f6 {[%emt 0:00:49]} (37... Ra5 $1 $17 38. dxe6 Rxg5 39. hxg5 Qxe6 (39... fxe6 40. Rd1 $17)) 38. Rg3 {[%emt 0:06:36]} (38. Rxh5+ $1 $11 gxh5 39. Qxh5+ Kg8 40. Qe8+ Kh7 41. Qh5+) 38... f5 {[%emt 0:00:23][%cal Rf5e4]} (38... exd5 39. f5 d4 (39... dxe4 $2 40. fxg6+ Kh8 41. Qxf6 $18) 40. fxg6+ Kh8 41. Qxf6 $18 (41. Qxh5+ Kg8 $16)) 39. dxe6 $2 {[%emt 0:03:42]} (39. Rxg6 $1 $11 Rxg6 (39... Kxg6 40. exf5+ Kh7 41. Qxh5+ Kg8 42. Qe8+ Kh7 43. Qh5+ Kg8 44. Qe8+ Kh7 45. Qh5+ $11) 40. Qxh5+ Kg7 41. dxe6) 39... fxe4 $2 {[%emt 0:00:11]} (39... Qxe6 $19 {[%cal Ra4e4]} 40. e5 Rd7) 40. Qd1 {[%emt 0:00:13]} (40. Qf2 $1 $15 Qxe6 41. Rg5) 40... Qxe6 {[%emt 0:00:19]} 41. Rg5 {[%emt 0:01:06][%cal Of4f5]} Qf6 {[%emt 0:00:11]} (41... Rf7 $17 42. g3 Rf6) 42. g3 {[%emt 0:00:52][%cal Of4f5]} Raa7 $2 {[%emt 0:01:06]} (42... Qe6 $11 {and Black stays safe.}) 43. Rxe4 $2 {[%emt 0:01:56]} (43. Rf1 $1 $18) 43... Rae7 $36 {[%emt 0:00:09][%mdl 2048] Against f5. Black fights for an advantage.} 44. Rd4 {[%emt 0:01:37]} (44. Re3 $11) 44... Qe6 $1 $19 {[%emt 0:00:19]} 45. Qb1 {[%emt 0:09:51]} Qe2+ {[%emt 0:00:22]} 46. Kg1 {[%emt 0:01:42]} Re3 {[%emt 0:01:28]} 47. Rxd6 $2 {[%emt 0:01:19]} (47. Rd1 Rd3 48. Re1) 47... Rd3 $1 {[%emt 0:00:22]} (47... Rf3 48. Qe1 Qxe1+ (48... Qxc2 49. Rdxg6 $11) 49. Nxe1 $17) 48. Rxd3 {[%emt 0:01:34]} Qxd3 {[%emt 0:00:05]} 49. f5 {[%emt 0:03:01]} gxf5 $2 {[%emt 0:00:11]} (49... Re7 $1 $19 50. fxg6+ Kg7) 50. Rxh5+ $11 {[%emt 0:00:15]} Kg6 {[%emt 0:00:11]} 51. Rg5+ {[%emt 0:00:05]} Kf6 {[%emt 0:00:06]} 52. Qf1 $2 {[%emt 0:00:45]} (52. Qe1 $11 {and White has nothing to worry.}) 52... Qxf1+ {[%emt 0:00:49]} (52... Qxc2 53. Qa6+ Kf7 54. Qc4+ Kf6 55. Qd4+ Ke6 56. Rxg7 (56. Qxg7 Qd1+ 57. Kg2 Qe2+ 58. Kg1 Qe1+ 59. Kh2 Qe2+ 60. Kg1 Qd1+ 61. Kf2 Qc2+ 62. Kg1 Qd1+ $11) 56... Qc1+ 57. Kf2 Qc2+ 58. Ke3 Qc1+ 59. Ke2 Qc2+ 60. Kf1 Qc1+ 61. Kf2 Qc2+ 62. Kf1 Qc1+ 63. Ke2 Qc2+ 64. Kf1 $11) (52... Rd7 $1 $19 53. Qf2 Bc1) 53. Kxf1 $15 {[%emt 0:00:02]} Rxg5 {[%emt 0:01:43]} (53... Rd7 $1 $15 54. Ke1 Rd2) 54. hxg5+ $11 {[%emt 0:00:06]} Kxg5 $19 {[%emt 0:00:06][%mdl 4096] Endgame KB-KN. Black is a pawn up.} 55. Kf2 $1 {[%emt 0:00:07]} Bc1 {[%emt 0:00:05]} 56. Kf3 {[%emt 0:00:22]} Kh5 {[%emt 0:00:22]} 57. Nd4 {[%emt 0:00:17]} Bh6 {[%emt 0:00:27]} 58. Nc2 {[%emt 0:00:43]} Kg5 {[%emt 0:00:10]} 59. Ne3 {[%emt 0:00:23]} Bf8 {[%emt 0:00:16]} (59... Kg6 $5 60. Nc2 $8 Kh5 $11) 60. Nc2 {[%emt 0:00:36]} Bc5 {[%emt 0:00:12]} 61. Ne1 {[%emt 0:00:18]} (61. Ke2 $1 $11) 61... Ba3 {[%emt 0:00:44]} (61... Bd6 $1 $17) 62. Nc2 $11 {[%emt 0:00:09]} Bc1 {[%emt 0:00:08]} 63. Ne1 {[%emt 0:00:27]} Kh5 {[%emt 0:00:17]} (63... Bd2 $5 64. Nc2 $8 Kh5 $11) 64. Nc2 {[%emt 0:00:18]} Bd2 {[%emt 0:00:13]} 65. Nd4 {[%emt 0:00:44]} Kg5 {[%emt 0:00:11]} 66. Nc2 {[%emt 0:00:08]} Kh5 {[%emt 0:01:25]} 67. Nd4 {[%emt 0:00:07]} Bh6 {[%emt 0:00:07]} 68. Nc2 {[%emt 0:00:10]} Bg7 {[%emt 0:00:05]} 69. Ne3 {[%emt 0:01:14]} Be5 {[%emt 0:00:08]} 70. Nc2 {[%emt 0:00:20]} Kg5 {[%emt 0:00:04]} 71. Ne3 {[%emt 0:00:10]} (71. Kf2 $11) 71... Kh5 {[%emt 0:00:48]} ({Black should play} 71... Bd6 $1 $17 72. Nc2 Kf6) 72. Nc2 $1 {[%emt 0:00:11]} Kg6 {[%emt 0:00:07]} 73. Ne1 {[%emt 0:01:03] [#]} (73. Kf2 $11 {keeps the balance.}) 73... Kf6 {[%emt 0:00:18]} (73... Bd6 $1 $17 74. Nc2 Kf6) 74. Nc2 {[%emt 0:00:48] [#]} (74. g4 $11) 74... Ke6 {[%emt 0:00:54]} (74... Bd6 $1 $17 75. g4 f4) 75. Ne3 $2 {[%emt 0:00:21][%mdl 8192]} (75. Nb4 $11) 75... Bd6 {[%emt 0:00:12] Strongly threatening ...Bc5.} 76. Nc2 {[%emt 0:01:40]} Kd5 {[%emt 0:00:31]} 77. Ne3+ {[%emt 0:01:08]} Kd4 {[%emt 0:01:15] ( -> ...Kd3)} 78. Ke2 {[%emt 0:00:22]} Ke4 {[%emt 0:00:23]} (78... Bxg3 79. Nxf5+ Ke4 80. Nxg3+ $11) 79. Nd1 {[%emt 0:03:24]} c2 $2 {[%emt 0:01:12]} ({Not} 79... Bxg3 80. Nxc3+ Kd4 81. Nd1 $11) (79... Be5 $19 {[%cal Oe5d4] ( -> ...Bd4!)} 80. Nf2+ Kd4) 80. Nf2+ $1 {[%emt 0:00:27] The position is equal.} Kd4 {[%emt 0:00:05]} 81. Kd2 {[%emt 0:00:43]} Bxg3 {[%emt 0:01:21]} (81... Bf8 {simplifies} 82. Kxc2 Bh6 83. Nd1 Bg5) 82. Nh3 {[%emt 0:00:27]} Bh4 {[%emt 0:02:12]} 83. Kxc2 {[%emt 0:00:11]} Ke3 {[%emt 0:00:04]} 84. Kd1 {[%emt 0:00:22]} Bf2 {[%emt 0:01:22]} 85. Ng5 {[%emt 0:00:19]} Bh4 {[%emt 0:00:24]} 86. Nh3 {[%emt 0:00:36]} Kf3 {[%emt 0:00:28]} 87. Ng1+ $1 {[%emt 0:00:45]} Kf2 {[%emt 0:00:35]} 88. Nh3+ {[%emt 0:00:27]} Kf1 {[%emt 0:00:31]} 89. Nf4 {[%emt 0:00:35]} Kf2 {[%emt 0:00:05]} 90. Nh3+ {[%emt 0:00:07]} Ke3 {[%emt 0:00:07]} 91. Kc2 {[%emt 0:00:24]} Bf6 {[%emt 0:00:21]} 92. Kd1 {[%emt 0:00:41]} Bc3 {[%emt 0:00:05]} 93. Kc2 $1 {[%emt 0:00:21]} Ba5 {[%emt 0:00:05]} 94. Kd1 {[%emt 0:00:08]} Bd2 {[%emt 0:00:33]} 95. Kc2 {[%emt 0:00:41]} Ke2 {[%emt 0:00:14]} 96. Ng1+ {[%emt 0:00:53]} Ke3 {[%emt 0:00:07]} 97. Nh3 {[%emt 0:00:12]} Ba5 {[%emt 0:00:05]} 98. Kd1 {[%emt 0:00:07]} Bb4 {[%emt 0:00:06]} 99. Kc2 $1 {[%emt 0:00:14]} Bd6 {[%emt 0:00:51]} 100. Kd1 {[%emt 0:00:09]} Bg3 {[%emt 0:00:05]} 101. Kc2 {[%emt 0:00:25]} Ke2 {[%emt 0:00:31]} 102. Kc3 {[%emt 0:00:28]} Kf3 {[%emt 0:01:16]} 103. Kd3 {[%emt 0:00:09]} Kg4 {[%emt 0:00:43]} 104. Ng1 {[%emt 0:00:13]} Bf2 {[%emt 0:00:04]} 105. Ne2 {[%emt 0:00:19]} Kf3 {[%emt 0:00:43]} 106. Nc3 {[%emt 0:00:05]} Ba7 {[%emt 0:00:59]} 107. Nd5 {[%emt 0:00:17]} Bf2 {[%emt 0:00:05]} 108. Nc3 {[%emt 0:00:15]} Bc5 {[%emt 0:00:18]} 109. Nd5 {[%emt 0:00:08]} Kg3 {[%emt 0:00:10]} 110. Ke2 {[%emt 0:00:21]} Bd4 {[%emt 0:00:27]} 111. Kf1 {[%emt 0:00:25]} Kf3 {[%emt 0:00:00] And White is the lucky defender.   Weighted Error Value: White=0.44/Black=0.43  Loses game:     	White=4     	Black=1      Missed win:     	White=1     	Black=2      Mistake:       	White=12    	Black=11     Inaccurate:     	White=6     	Black=6      OK:         	White=35    	Black=13     Best:        	White=11    	Black=2      Strong:       	White=7     	Black=2} 1/2-1/2

[Event "25th Nepal Championship 2025"]
[Site "Hetauda"]
[Date "2025.01.27"]
[Round "3.2"]
[White "Rai, Dhiren"]
[Black "Bhandari, Kshitiz"]
[Result "1-0"]
[Annotator "TA"]
[ECO "C01"]
[WhiteElo "1878"]
[BlackElo "2070"]
[PlyCount "51"]
[EventDate "2025.01.24"]
[EventType "tourn"]
[EventCountry "NEP"]
[SourceTitle "playchess.com"]
[Source "ChessBase"]
[SourceQuality "1"]
[TimeControl "5400+30"]

{[%evp 18,51,36,28,61,6,0,0,0,-4,-9,-13,-12,-14,-8,-18,3,0,3,7,16,11,47,54,58,50,60,68,127,93,85,87,375,391,413,409]} 1. e4 {[%emt 0:00:07]} e6 {[%emt 0:02:41]} 2. Nf3 {[%emt 0:03:16]} d5 {[%emt 0:00:17]} 3. exd5 {[%emt 0:00:34]} exd5 {[%emt 1:29:02]} 4. d4 {[%emt 1:28:33]} Nf6 {[%emt 0:00:00]} 5. Bd3 {[%emt 0:00:30]} Bd6 {[%emt 0:00:00]} 6. O-O {[%emt 0:00:00]} O-O {[%emt 0:00:00]} 7. Bg5 {[%emt 0:00:00]} c5 {[%emt 0:00:00]} 8. dxc5 {[%emt 0:00:00]} Bxc5 {[%emt 0:00:00]} 9. c3 {[%emt 0:00:00]} Nc6 {[%emt 0:00:00]} 10. Nbd2 {[%emt 0:00:00][%cal Bb1d2,Bd2b3,Bb3d4][%mdl 32]} Be7 $146 {[%emt 0:00:00] C01: French: Exchange Variation.} (10... Re8 11. Qa4 h6 12. Bh4 g5 13. Nxg5 hxg5 14. Bxg5 Kg7 15. Rae1 Rh8 16. Nf3 Bd6 17. h4 Be6 18. Bb5 {1-0 Vysochin,S (2512)-Polivanov,A (2439) Malakhatko Memorial op blitz 2023 (11)}) 11. Bxf6 {[%emt 0:00:00]} (11. Re1 $14) 11... Bxf6 $11 {[%emt 0:00:00]} 12. Nb3 {[%emt 0:00:00]} Qb6 {[%emt 0:00:00] The position is equal.} 13. Qc2 {[%emt 0:00:00]} g6 {[%emt 0:00:00]} 14. Rad1 {[%emt 0:00:00]} Bg4 {[%emt 0:00:00]} 15. Be2 {[%emt 0:00:00]} Rfd8 {[%emt 0:00:00]} 16. h3 {[%emt 0:00:00]} Be6 {[%emt 0:00:00]} 17. Nbd4 {[%emt 0:00:00]} Rac8 {[%emt 0:00:00] [#] ...Nxd4 is the strong threat.} 18. Qb3 {[%emt 0:00:00]} Qc7 {[%emt 0:00:00]} 19. Rfe1 {[%emt 0:00:00]} Na5 {[%emt 0:00:00]} 20. Nxe6 {[%emt 0:00:00]} fxe6 {[%emt 0:00:00]} 21. Qb4 {[%emt 0:00:00]} e5 {[%emt 0:00:00]} 22. Qg4 {[%emt 0:00:00][%cal Od1d5]} Qf7 {[%emt 0:00:00]} (22... Rb8 $14) 23. Ng5 {[%emt 0:00:00] White is more active.} Bxg5 {[%emt 0:00:00]} 24. Qxg5 {[%emt 0:00:00][%cal Oe2g4] and Bg4! should not be overlooked} e4 $2 {[%emt 0:02:08][%mdl 8192]} (24... Nc6 $16 {was necessary.}) 25. Bg4 $18 {[%emt 0:00:00]} Ra8 {[%emt 0:00:37] [#]} 26. Rxe4 $3 {[%emt 0:00:00][%mdl 512] Weighted Error Value: White=0.10 (very precise) /Black=0.42  Loses game:     	---       	Black=1      Mistake:       	White=1     	Black=1      Inaccurate:     	---       	Black=1      OK:         	White=5     	Black=2      Best:        	White=1     	---        Brilliant:      	White=1     	---} 1-0

[Event "25th Nepal Championship 2025"]
[Site "Hetauda"]
[Date "2025.01.27"]
[Round "3.3"]
[White "Jaiswal, Rupesh"]
[Black "Maharjan, Suroj"]
[Result "1-0"]
[Annotator "TA"]
[ECO "D04"]
[WhiteElo "2093"]
[BlackElo "1952"]
[PlyCount "147"]
[EventDate "2025.01.24"]
[EventType "tourn"]
[EventCountry "NEP"]
[SourceTitle "playchess.com"]
[Source "ChessBase"]
[SourceQuality "1"]
[TimeControl "5400+30"]

{[%evp 9,147,26,18,9,10,-2,0,-27,-16,-12,-8,-17,-13,-7,-20,-19,-8,-16,-15,-32,0,-22,-3,-19,-18,-14,-22,-29,-13,-32,-40,-41,0,-6,0,0,0,0,0,0,22,0,17,0,33,35,169,178,170,172,168,168,404,196,170,171,256,237,219,236,239,248,249,247,228,227,243,246,294,294,297,297,297,298,333,323,358,220,216,206,246,243,268,261,249,237,304,276,350,343,348,340,426,425,400,395,437,228,229,65,52,0,66,8,8,8,12,12,25,12,12,14,12,12,14,8,29966,29967,29965,29966,29965,29966,29972,29971,29972,29972,29973,29971,29967,29968,29981,29982,29981,29983,29983,29984,29985,29986,29986,29984]} 1. Nf3 {[%emt 0:00:06]} d5 {[%emt 0:01:15]} 2. d4 {[%emt 0:00:41]} Nf6 {[%emt 0:01:21]} 3. e3 {[%emt 0:00:08]} Bg4 {[%emt 0:00:43]} 4. Nbd2 {[%emt 0:00:18]} c5 {[%emt 0:05:01]} 5. h3 {[%emt 0:02:53]} Bxf3 {[%emt 0:00:47]} 6. Nxf3 {[%emt 0:00:05] D04: Colle System.} Nc6 {[%emt 0:00:19]} 7. b3 $146 {[%emt 0:02:41]} (7. Be2 e6 8. O-O Bd6 9. dxc5 Bxc5 10. a3 a5 11. c4 O-O 12. Bd2 Ne4 13. cxd5 Qxd5 {1-0 Santos Latasa,J (2626)-Riehle,M (2380) Titled Tuesday intern op 14th May Late blitz 2024 (4)}) 7... cxd4 {[%emt 0:01:05]} 8. exd4 {[%emt 0:02:27] The position is equal.} Ne4 {[%emt 0:00:49][%cal Oe7e5] ...e5! is in the air} 9. Bd3 {[%emt 0:06:40]} Qa5+ {[%emt 0:02:28]} 10. Bd2 {[%emt 0:00:59]} Nxd2 {[%emt 0:00:06]} 11. Qxd2 {[%emt 0:00:04]} Qxd2+ {[%emt 0:00:58]} 12. Kxd2 {[%emt 0:00:08]} e6 {[%emt 0:00:32]} 13. Bb5 {[%emt 0:05:52]} f6 {[%emt 0:03:19]} 14. c4 {[%emt 0:06:58]} a6 {[%emt 0:01:58]} 15. Ba4 {[%emt 0:02:19]} Bd6 {[%emt 0:05:31]} 16. cxd5 {[%emt 0:04:59]} exd5 {[%emt 0:01:04] White must now prevent ...b5.} 17. Bxc6+ {[%emt 0:00:12]} bxc6 {[%emt 0:00:04]} 18. Kd3 {[%emt 0:00:33]} a5 {[%emt 0:00:40]} 19. Rab1 {[%emt 0:02:41]} Kd7 {[%emt 0:00:33]} 20. Ne1 {[%emt 0:03:16]} a4 {[%emt 0:02:49]} 21. b4 {[%emt 0:57:00]} a3 {[%emt 0:00:52]} 22. Nc2 {[%emt 0:00:00]} Rhb8 {[%emt 0:03:23]} 23. Rb3 {[%emt 0:00:00]} Ra4 {[%emt 0:00:11]} 24. Rhb1 {[%emt 0:00:00]} Rba8 {[%emt 0:00:53]} 25. Kc3 {[%emt 0:00:00]} Kc7 {[%emt 0:03:59]} 26. Kd3 {[%emt 0:00:00]} Kb6 {[%emt 0:03:57]} 27. Ne3 {[%emt 0:00:00]} (27. b5 $5 c5 $8 28. dxc5+ Bxc5 29. Re1 $11) 27... Kb5 {[%emt 0:00:54]} (27... Rd8 $14) 28. Nd1 $1 $18 {[%emt 0:00:00]} Kb6 {[%emt 0:05:47]} 29. Nc3 {[%emt 0:00:00]} R4a7 {[%emt 0:03:24]} 30. b5 {[%emt 0:00:00]} Bc7 $2 {[%emt 0:09:58]} (30... Kb7 31. bxc6+ Kxc6 32. Rb6+ Kd7 33. Nxd5 h5) 31. bxc6+ {[%emt 0:00:00]} (31. Rc1 $142) 31... Kxc6 {[%emt 0:00:59]} 32. Rc1 {[%emt 0:00:00]} Bf4 {[%emt 0:03:38]} (32... Kd7 {might work better.} 33. Nxd5 Bd8) 33. Rc2 {[%emt 0:00:00]} Kd7 {[%emt 0:02:00]} 34. Nxd5 {[%emt 0:00:00]} Rb8 {[%emt 0:00:48]} 35. Rxb8 {[%emt 0:00:00]} (35. Nxf4 $2 Rxb3+ 36. axb3 a2 $17) 35... Bxb8 {[%emt 0:00:05][%mdl 4096] Endgame KRB-KRN. White is a pawn up.} 36. Nb6+ {[%emt 0:00:00]} Ke6 {[%emt 0:00:45]} 37. Rc6+ {[%emt 0:00:00]} Kf5 {[%emt 0:00:56]} 38. Nc4 {[%emt 0:00:00]} Rd7 {[%emt 0:02:07]} 39. Ra6 {[%emt 0:00:00]} (39. Nxa3 $6 Ra7 $18) 39... Be5 {[%emt 0:01:33]} 40. Ne3+ {[%emt 0:00:00]} (40. Rxa3 Bxd4 41. Ke2 Re7+ 42. Kf1 Rc7 $11) 40... Kg6 {[%emt 0:02:29]} 41. Nc2 {[%emt 0:00:00]} (41. Rxa3 Rxd4+ 42. Ke2 Rb4 $14) 41... Bf4 {[%emt 0:02:25]} 42. Rxa3 {[%emt 0:00:00]} Rb7 {[%emt 0:00:37]} 43. Rb3 {[%emt 0:00:00]} Ra7 {[%emt 0:00:13]} 44. a3 {[%emt 0:00:00]} Bd6 {[%emt 0:00:07]} 45. Rb1 {[%emt 0:00:00]} h5 {[%emt 0:00:30]} 46. Ra1 {[%emt 0:00:00]} Ra4 {[%emt 0:01:19]} 47. Kc3 {[%emt 0:00:00]} Kf5 {[%emt 0:28:49]} 48. Ne3+ {[%emt 0:00:00]} Ke4 {[%emt 0:00:00]} 49. Nc4 {[%emt 0:00:00]} Bc7 {[%emt 0:00:00]} 50. Rb1 {[%emt 0:00:00]} g5 {[%emt 0:00:00]} 51. Rb7 {[%emt 0:00:00]} Bh2 {[%emt 0:00:00]} 52. Rb5 {[%emt 0:00:00]} h4 {[%emt 0:00:00]} 53. Kb3 {[%emt 0:00:00]} (53. Nd2+ $142 Kf4 54. Nc4) 53... Ra7 {[%emt 0:00:00]} 54. Nd2+ $2 {[%emt 0:00:00]} (54. d5 $18) 54... Kd3 $1 $14 {[%emt 0:00:00]} 55. Nc4 {[%emt 0:03:00]} ({White should play} 55. Nf3 $14 Bc7 56. Rf5) 55... Kxd4 {[%emt 0:00:00]} ({Black should play} 55... Ke4 $11) 56. Ne3 {[%emt 0:02:19]} (56. a4 $14) 56... Kd3 $1 $11 {[%emt 0:04:30]} 57. Ng4 {[%emt 0:02:25][%csl LRf6,LRh2]} Bf4 {[%emt 0:00:00]} 58. Nxf6 {[%emt 0:01:43] a4 poses a challenge} Ke2 {[%emt 0:00:00]} 59. Ne4 {[%emt 0:00:54]} Re7 {[%emt 0:00:00]} 60. Nxg5 {[%emt 0:02:43] Strongly threatening Nf3.} ({But not} 60. Rb4 $6 Bc7 $16) 60... Kxf2 {[%emt 0:00:00]} 61. Rf5 {[%emt 0:00:15]} Kg3 $1 {[%emt 0:00:00]} 62. a4 {[%emt 0:01:20][%cal Ba3a4,Ba4a5,Ba5a6][%mdl 32]} Re5 $2 {[%emt 0:00:00][%mdl 8192]} (62... Bc7 $11) 63. Rxe5 {[%emt 0:00:43] White mates.} Bxe5 {[%emt 0:00:00] KB-KN. White is two pawns up.} 64. Nf3 {[%emt 0:01:10]} Bc7 {[%emt 0:00:00] [#]} 65. Nxh4 $1 {[%emt 0:01:23]} Kxh4 {[%emt 0:00:00] KB-K3P} (65... Kf4 66. g4) 66. Kb4 {[%emt 0:00:01]} Kg3 {[%emt 0:00:05]} 67. a5 {[%emt 0:00:04]} Bf4 {[%emt 0:01:45]} 68. a6 {[%emt 0:00:25]} Be3 {[%emt 0:00:01]} 69. Kb5 {[%emt 0:00:17]} Kxg2 {[%emt 0:03:16]} 70. h4 $1 {[%emt 0:00:07][%cal Bh3h4,Bh4h5,Bh5h6,Bh6h7][%mdl 32]} Kf3 {[%emt 0:00:19] [#]} 71. h5 $1 {[%emt 0:00:06]} Ke4 {[%emt 0:00:26] [#]} 72. h6 $1 {[%emt 0:00:06][%mdl 512]} Kf5 {[%emt 0:02:08]} (72... Kd5 73. h7) 73. h7 {[%emt 0:00:11]} Bd4 {[%emt 0:00:00] [#]} 74. a7 $1 {[%emt 0:00:27][%mdl 512] Weighted Error Value: White=0.22 (precise) /Black=0.26 (precise)   Loses game:     	---       	Black=1      Missed win:     	White=1     	---        Mistake:       	White=4     	Black=4      Inaccurate:     	White=2     	Black=3      OK:         	White=30    	Black=11     Best:        	White=5     	Black=6      Strong:       	White=1     	Black=3} 1-0